fUST/lending_fUST_20250725
["ID","MTS","AMOUNT","RATE_DAILY","PERIOD"]
[374686317,1753413055095,-600.0,0.00022001,2]
[374686318,1753413055105,-160.0,0.00022037,3]
[374686319,1753413055116,-460.0,0.00022049,2]
[374686320,1753413055128,-534.09,0.00022049,2]
[374686321,1753413055138,-3269.13,0.00022049,2]
[374686322,1753413055148,-460.0,0.00022049,2]
[374686323,1753413055158,-460.0,0.00022049,2]
[374686324,1753413055170,-460.0,0.00022049,2]
[374686325,1753413055181,-1273.31,0.00022049,2]
[374686326,1753413055193,-495.47,0.00022049,2]
[374686327,1753413055203,-1322.49,0.00022049,2]
[374686328,1753413055213,-623.94,0.00022049,2]
[374686329,1753413055222,-541.84566674,0.00022049,2]
[374686330,1753413055232,-1123.15,0.00022049,2]
[374686331,1753413055242,-460.0,0.0002205,2]
[374686332,1753413055252,-151.0,0.0002205,7]
[374686333,1753413055261,-151.0,0.0002205,7]
[374686334,1753413055271,-460.0,0.0002205,2]
[374686335,1753413055283,-151.0,0.0002205,7]
[374686336,1753413055293,-606.89920914,0.0002205,2]
[374686337,1753413055303,-151.0,0.0002205,7]
[374686338,1753413055314,-460.0,0.0002205,2]
[374686339,1753413055324,-811.88,0.0002205,2]
[374686340,1753413055334,-151.0,0.0002205,7]
[374686341,1753413055343,-151.0,0.0002205,7]
[374686342,1753413055354,-485.53,0.0002205,2]
[374686343,1753413055365,-682.55,0.0002205,2]
[374686344,1753413055374,-233.568959,0.0002205,7]
[374686345,1753413055384,-1105.84,0.0002205,2]
[374686346,1753413055394,-233.568959,0.0002205,7]
[374686347,1753413055404,-151.0,0.0002205,7]
[374686348,1753413055414,-1999.76,0.0002205,2]
[374686349,1753413055424,-460.0,0.0002205,2]
[374686350,1753413055434,-460.0,0.0002205,2]
[374686351,1753413055443,-775.94,0.0002205,2]
[374686352,1753413055453,-237.83595681,0.0002205,2]
[374686353,1753413055464,-572.18,0.0002205,2]
[374686354,1753413055474,-1380.02,0.0002205,2]
[374686355,1753413055483,-508.82,0.0002205,2]
[374686356,1753413055494,-151.0,0.0002205,7]
[374686357,1753413055504,-151.0,0.0002205,7]
[374686358,1753413055515,-151.0,0.0002205,7]
[374686359,1753413055525,-151.0,0.0002205,7]
[374686360,1753413055536,-236.046436,0.0002205,7]
[374686361,1753413055545,-236.046436,0.0002205,7]
[374686362,1753413055556,-151.0,0.0002205,7]
[374686363,1753413055567,-593.98,0.0002205,2]
[374686364,1753413055577,-151.0,0.0002205,7]
[374686365,1753413055587,-1059.98,0.0002205,2]
[374686366,1753413055597,-572.37,0.0002205,2]
[374686367,1753413055607,-499.64,0.0002205,2]
[374686368,1753413055616,-500.0,0.0002205,2]
[374686369,1753413055626,-1304.1,0.0002205,2]
[374686370,1753413055636,-460.0,0.0002205,2]
[374686371,1753413055647,-838.96,0.0002205,2]
[374686372,1753413055657,-631.7,0.0002205,2]
[374686373,1753413055666,-1408.64,0.0002205,2]
[374686374,1753413055675,-334.98854178,0.0002205,2]
[374686375,1753413055685,-2590.99,0.0002205,2]
[374686376,1753413055695,-460.0,0.0002205,2]
[374686377,1753413055705,-460.0,0.0002205,2]
[374686378,1753413055714,-151.0,0.00022068,7]
[374686379,1753413055724,-151.0,0.00022068,7]
[374686380,1753413055734,-151.0,0.00022068,7]
[374686381,1753413055743,-278.95014,0.00022068,7]
[374686382,1753413055753,-278.95014,0.00022068,7]
[374686383,1753413055763,-431.694664,0.00022068,7]
[374686384,1753413055773,-431.694664,0.00022068,7]
[374686385,1753413055782,-154.094668,0.00022105,3]
[374686386,1753413055792,-151.0,0.00022112,7]
[374686387,1753413055802,-151.0,0.00022112,7]
[374686388,1753413055813,-151.0,0.00022112,7]
[374686389,1753413055822,-1022.0,0.0002216,2]
[374686390,1753413055832,-901.0,0.0002216,2]
[374686391,1753413055843,-197.831491,0.0002216,7]
[374686392,1753413055854,-197.831491,0.0002216,7]
[374686393,1753413055863,-3563.69170354,0.0002221,6]
[374686394,1753413055873,-600.0,0.0002223,2]
[374686395,1753413055883,-258.60328844,0.00022276,2]
[374686396,1753413055893,-460.0,0.00022323,2]
[374686397,1753413055903,-534.09,0.00022323,2]
[374686398,1753413055913,-3269.13,0.00022323,2]
[374686399,1753413055924,-460.0,0.00022323,2]
[374686400,1753413055934,-417.47448744,0.00022323,2]
[374686401,1753413055944,-410.04161332,0.00022323,2]
[374686402,1753413055954,-1273.31,0.00022323,2]
[374686403,1753413055964,-495.47,0.00022323,2]
[374686404,1753413055974,-1322.49,0.00022323,2]
[374686405,1753413055984,-623.94,0.00022323,2]
[374686406,1753413055994,-1123.15,0.00022323,2]
[374686407,1753413056004,-460.0,0.00022324,2]
[374686408,1753413056014,-151.0,0.00022324,7]
[374686409,1753413056025,-460.0,0.00022324,2]
[374686410,1753413056035,-460.0,0.00022324,2]
[374686411,1753413056045,-811.88,0.00022324,2]
[374686412,1753413056054,-485.53,0.00022324,2]
[374686413,1753413056065,-682.55,0.00022324,2]
[374686414,1753413056075,-1105.84,0.00022324,2]
[374686415,1753413056086,-1999.76,0.00022324,2]
[374686416,1753413056212,-460.0,0.00022324,2]
[374686417,1753413056241,-455.20557783,0.00022324,2]
[374686418,1753413056251,-775.94,0.00022324,2]
[374686419,1753413056260,-572.18,0.00022324,2]
[374686420,1753413056270,-1380.02,0.00022324,2]
[374686421,1753413056279,-508.82,0.00022324,2]
[374686422,1753413056289,-593.98,0.00022324,2]
[374686423,1753413056299,-1059.98,0.00022324,2]
[374686424,1753413056309,-572.37,0.00022324,2]
[374686425,1753413056320,-499.64,0.00022324,2]
[374686426,1753413056330,-500.0,0.00022324,2]
[374686427,1753413056339,-1304.1,0.00022324,2]
[374686428,1753413056349,-460.0,0.00022324,2]
[374686429,1753413056359,-838.96,0.00022324,2]
[374686430,1753413056368,-631.7,0.00022324,2]
[374686431,1753413056378,-1408.64,0.00022324,2]
[374686432,1753413056387,-2590.99,0.00022324,2]
[374686433,1753413056397,-460.0,0.00022324,2]
[374686434,1753413056407,-460.0,0.00022324,2]
[374686435,1753413056417,-560.0,0.00022345,2]
[374686436,1753413056427,-174.8,0.0002236,5]
[374686437,1753413056436,-1544.37202294,0.0002239,2]
[374686438,1753413056445,-1000.0,0.000224,2]
[374686439,1753413056455,-1000.0,0.000224,2]
[374686440,1753413056466,-1000.0,0.000224,2]
[374686441,1753413056475,-1000.0,0.000224,2]
[374686442,1753413056484,-1000.0,0.000224,2]
[374686443,1753413056494,-1000.0,0.000224,2]
[374686444,1753413056503,-1000.0,0.000224,2]
[374686445,1753413056512,-1000.0,0.000224,2]
[374686446,1753413056523,-1000.0,0.000224,2]
[374686447,1753413056532,-1000.0,0.000224,2]
[374686448,1753413056542,-1000.0,0.000224,2]
[374686449,1753413056551,-1000.0,0.000224,2]
[374686450,1753413056562,-1000.0,0.000224,2]
[374686451,1753413056572,-1000.0,0.000224,2]
[374686452,1753413056581,-1000.0,0.000224,2]
[374686453,1753413056591,-1000.0,0.000224,2]
[374686454,1753413056600,-1000.0,0.000224,2]
[374686455,1753413056610,-1000.0,0.000224,2]
[374686456,1753413056619,-1000.0,0.000224,2]
[374686457,1753413056628,-1000.0,0.000224,2]
[374686458,1753413056638,-1000.0,0.000224,2]
[374686459,1753413056647,-1000.0,0.000224,2]
[374686460,1753413056657,-1000.0,0.000224,2]
[374686461,1753413056667,-1000.0,0.000224,2]
[374686462,1753413056676,-1000.0,0.000224,2]
[374686463,1753413056686,-1000.0,0.000224,2]
[374686464,1753413056695,-1000.0,0.000224,2]
[374686465,1753413056704,-1022.0,0.00022434,2]
[374686466,1753413056714,-901.0,0.00022434,2]
[374686467,1753413056724,-500.0,0.00022452,2]
[374686468,1753413056734,-600.0,0.0002246,2]
[374686469,1753413056744,-1632.19,0.00022465,2]
[374686470,1753413056754,-300.0,0.00022466,2]
[374686471,1753413056763,-3563.69170354,0.00022486,7]
[374686472,1753413056773,-310765.86544881,0.0002249,7]
[374686473,1753413056783,-152.623267,0.0002249,7]
[374686474,1753413056792,-151.0,0.0002249,7]
[374686475,1753413056802,-229.929187,0.0002249,7]
[374686476,1753413056815,-151.0,0.0002249,7]
[374686477,1753413056825,-151.0,0.0002249,7]
[374686478,1753413056835,-151.0,0.0002249,7]
[374686479,1753413056844,-151.0,0.0002249,7]
[374686480,1753413056854,-151.0,0.0002249,7]
[374686481,1753413056864,-151.0,0.0002249,7]
[374686482,1753413056874,-153.297077,0.0002249,7]
[374686483,1753413056884,-151.0,0.0002249,7]
[374686484,1753413056894,-151.0,0.0002249,7]
[374686485,1753413056904,-278.95014,0.0002249,7]
[374686486,1753413056914,-278.95014,0.0002249,7]
[374686487,1753413056924,-215.867294,0.0002249,7]
[374686488,1753413056935,-151.0,0.0002249,7]
[374686489,1753413056944,-431.694664,0.0002249,7]
[374686490,1753413056954,-431.694664,0.0002249,7]
[374686491,1753413056963,-151.0,0.0002249,7]
[374686492,1753413056973,-151.0,0.0002249,7]
[374686493,1753413056982,-152.174412,0.0002249,7]
[374686494,1753413056992,-233.568959,0.0002249,7]
[374686495,1753413057002,-233.568959,0.0002249,7]
[374686496,1753413057011,-151.0,0.0002249,7]
[374686497,1753413057021,-197.831491,0.0002249,7]
[374686498,1753413057031,-197.831491,0.0002249,7]
[374686499,1753413057040,-151.0,0.0002249,7]
[374686500,1753413057050,-151.0,0.0002249,7]
[374686501,1753413057060,-151.0,0.0002249,7]
[374686502,1753413057069,-151.0,0.0002249,7]
[374686503,1753413057078,-151.0,0.0002249,7]
[374686504,1753413057088,-236.046436,0.0002249,7]
[374686505,1753413057097,-236.046436,0.0002249,7]
[374686506,1753413057107,-151.0,0.0002249,7]
[374686507,1753413057120,-151.0,0.0002249,7]
[374686508,1753413057131,-151.0,0.0002249,7]
[374686509,1753413057140,-151.0,0.0002249,7]
[374686510,1753413057150,-151.0,0.0002249,7]
[374686511,1753413057161,-151.0,0.0002249,7]
[374686512,1753413057171,-160.0,0.00022498,4]
[374686513,1753413057181,-1111.11,0.000225,2]
[374686514,1753413057190,-566.43169304,0.00022596,2]
[374686515,1753413057200,-534.09,0.00022596,2]
[374686516,1753413057210,-3269.13,0.00022596,2]
[374686517,1753413057219,-592.22637855,0.00022596,2]
[374686518,1753413057229,-1273.31,0.00022596,2]
[374686519,1753413057238,-495.47,0.00022596,2]
[374686520,1753413057248,-1322.49,0.00022596,2]
[374686521,1753413057257,-623.94,0.00022596,2]
[374686522,1753413057267,-1123.15,0.00022596,2]
[374686523,1753413057277,-460.0,0.00022598,2]
[374686524,1753413057289,-460.0,0.00022598,2]
[374686525,1753413057298,-164.09420634,0.00022598,2]
[374686526,1753413057307,-811.88,0.00022598,2]
[374686527,1753413057318,-485.53,0.00022598,2]
[374686528,1753413057328,-682.55,0.00022598,2]
[374686529,1753413057337,-1105.84,0.00022598,2]
[374686530,1753413057347,-1999.76,0.00022598,2]
[374686531,1753413057356,-460.0,0.00022598,2]
[374686532,1753413057366,-775.94,0.00022598,2]
[374686533,1753413057376,-572.18,0.00022598,2]
[374686534,1753413057386,-1380.02,0.00022598,2]
[374686535,1753413057395,-508.82,0.00022598,2]
[374686536,1753413057405,-593.98,0.00022598,2]
[374686537,1753413057414,-1059.98,0.00022598,2]
[374686538,1753413057425,-572.37,0.00022598,2]
[374686539,1753413057434,-499.64,0.00022598,2]
[374686540,1753413057444,-500.0,0.00022598,2]
[374686541,1753413057454,-1304.1,0.00022598,2]
[374686542,1753413057465,-460.0,0.00022598,2]
[374686543,1753413057474,-838.96,0.00022598,2]
[374686544,1753413057484,-631.7,0.00022598,2]
[374686545,1753413057494,-1408.64,0.00022598,2]
[374686546,1753413057503,-2590.99,0.00022598,2]
[374686547,1753413057513,-460.0,0.00022598,2]
[374686548,1753413057522,-460.0,0.00022598,2]
[374686549,1753413057532,-59229.72028318,0.000226,5]
[374686550,1753413057542,-427.327691,0.00022603,2]
[374686551,1753413057552,-183.0,0.00022685,8]
[374686552,1753413057563,-600.0,0.00022689,2]
[374686553,1753413057572,-1022.0,0.00022708,2]
[374686554,1753413057582,-901.0,0.00022708,2]
[374686555,1753413057592,-3563.69170354,0.00022762,7]
[374686556,1753413057601,-154.094668,0.00022776,2]
[374686557,1753413057611,-2157.0,0.00022788,2]
[374686558,1753413057620,-969.0,0.00022788,2]
[374686559,1753413057630,-174.8,0.00022815,5]
[374686560,1753413057640,-239.84119403,0.00022855,2]
[374686561,1753413057649,-534.09,0.0002287,2]
[374686562,1753413057658,-3269.13,0.0002287,2]
[374686563,1753413057668,-1273.31,0.0002287,2]
[374686564,1753413057678,-495.47,0.0002287,2]
[374686565,1753413057688,-1322.49,0.0002287,2]
[374686566,1753413057698,-623.94,0.0002287,2]
[374686567,1753413057708,-1123.15,0.0002287,2]
[374686568,1753413057717,-183.55342365,0.00022872,2]
[374686569,1753413057727,-460.0,0.00022872,2]
[374686570,1753413057737,-811.88,0.00022872,2]
[374686571,1753413057747,-485.53,0.00022872,2]
[374686572,1753413057756,-682.55,0.00022872,2]
[374686573,1753413057766,-1105.84,0.00022872,2]
[374686574,1753413057775,-1999.76,0.00022872,2]
[374686575,1753413057785,-460.0,0.00022872,2]
[374686576,1753413057795,-775.94,0.00022872,2]
[374686577,1753413057804,-572.18,0.00022872,2]
[374686578,1753413057815,-1380.02,0.00022872,2]
[374686579,1753413057824,-508.82,0.00022872,2]
[374686580,1753413057834,-593.98,0.00022872,2]
[374686581,1753413057843,-1059.98,0.00022872,2]
[374686582,1753413057854,-572.37,0.00022872,2]
[374686583,1753413057863,-499.64,0.00022872,2]
[374686584,1753413057873,-500.0,0.00022872,2]
[374686585,1753413057882,-1304.1,0.00022872,2]
[374686586,1753413057893,-460.0,0.00022872,2]
[374686587,1753413057903,-838.96,0.00022872,2]
[374686588,1753413057913,-631.7,0.00022872,2]
[374686589,1753413057922,-1408.64,0.00022872,2]
[374686590,1753413057932,-2590.99,0.00022872,2]
[374686591,1753413057942,-207.30385294,0.00022872,2]
[374686592,1753413057952,-460.0,0.00022872,2]
[374686593,1753413057962,-660.0,0.00022893,2]
[374686594,1753413057972,-2626.45,0.000229,7]
[374686595,1753413057982,-3965.77,0.000229,7]
[374686596,1753413057992,-36485.36,0.000229,2]
[374686597,1753413058001,-350.0,0.00022918,2]
[374686598,1753413058011,-600.0,0.00022918,2]
[374686599,1753413058021,-200.45473655,0.00022928,2]
[374686600,1753413058030,-74100.98425201,0.00022929,2]
[374686601,1753413058110,-460.0,0.00019583,2]
[374686602,1753413058122,-20.035,0.00019857,2]
[374686603,1753413058133,-439.965,0.00019857,2]
[374686604,1753413058142,-460.0,0.00019858,2]
[374686605,1753413058152,-460.0,0.00020131,2]
[374686606,1753413058162,-460.0,0.00020132,2]
[374686607,1753413058172,-460.0,0.00020405,2]
[374686608,1753413058182,-460.0,0.00020406,2]
[374686609,1753413058191,-460.0,0.00020679,2]
[374686610,1753413058203,-460.0,0.0002068,2]
[374686611,1753413058214,-460.0,0.00020954,2]
[374686612,1753413058223,-3641.75332703,0.00022402,2]
[374686613,1753413058233,-2919.62956975,0.00022929,2]
[374686614,1753413058242,-151.0,0.00022929,7]
[374686615,1753413058252,-151.0,0.00022929,7]
[374686616,1753413058261,-160.0,0.00022959,5]
[374686617,1753413058270,-161.20772869,0.00022959,5]
[374686618,1753413058280,-3292.0,0.00022967,2]
[374686619,1753413058290,-1022.0,0.00022982,2]
[374686620,1753413058300,-901.0,0.00022982,2]
[374686621,1753413058310,-154.094668,0.00022991,6]
[374686622,1753413058322,-10800.0,0.00023,3]
[374686623,1753413058330,-160.0,0.00023,3]
[374686624,1753413058339,-353.58880993,0.00023,3]
[374686625,1753413058348,-683.7018341,0.00023,7]
[374686626,1753413058445,194.54454016,0.00025999,120]
[374686627,1753413058491,-460.0,0.00017391,2]
[374686628,1753413058500,-451.75,0.00020953,2]
[374686630,1753413178686,1109.1768124,0.00016497,2]
[374686631,1753413217580,276.296268,0.00013699,2]
[374686635,1753413329016,5000.0,0.00017,2]
[374686636,1753413345370,2338.39727854,0.00017,2]
[374686637,1753413345398,2661.60272146,0.00017,2]
[374686638,1753413360779,3241.40320819,0.00017,2]
[374686639,1753413475699,-155.16197308,0.00017191,2]
[374686640,1753413475723,-31.14700741,0.00017191,2]
[374686641,1753413478848,-151.5912497,0.00017191,2]
[374686642,1753413478871,-17.31655503,0.00017281,3]
[374686643,1753413482366,-161.42115455,0.00017281,3]
[374686644,1753413488809,-379.47206023,0.00017273,2]
[374686645,1753413550908,-120.52793977,0.00017273,2]
[374686646,1753413550936,-4.16229042,0.00017281,3]
[374686647,1753413550959,-208.25082192,0.00017281,3]
[374686652,1753414158205,-160.54937595,0.00017191,2]
[374686653,1753414167148,1271.6886487,0.00016289,2]
[374686688,1753414232152,-22.18888116,0.00017191,2]
[374686690,1753414232163,-162.55063848,0.00017191,2]
[374686692,1753414232174,-500.0,0.00017273,2]
[374686694,1753414232185,-706.25,0.00017281,3]
[374686695,1753414232197,-1200.0,0.00017288,2]
[374686696,1753414232208,-300.0,0.00017288,2]
[374686697,1753414232219,-461.41550793,0.00017289,2]
[374686698,1753414232231,-460.0,0.00017289,2]
[374686699,1753414232241,-1498.35,0.00017289,2]
[374686700,1753414232255,-1077.01,0.00017289,2]
[374686701,1753414232266,-324.07928187,0.00017289,2]
[374686702,1753414232276,-460.0,0.00017289,2]
[374686703,1753414232287,-460.0,0.00017289,2]
[374686704,1753414232297,-796.03,0.00017289,2]
[374686705,1753414232307,-460.0,0.00017289,2]
[374686706,1753414232318,-752.62,0.00017289,2]
[374686707,1753414232328,-846.15,0.00017289,2]
[374686708,1753414232338,-460.0,0.00017289,2]
[374686709,1753414232348,-460.0,0.00017289,2]
[374686710,1753414232359,-460.0,0.00017289,2]
[374686711,1753414232594,-260.20462686,0.00017289,2]
[374686712,1753414232613,-829.85537314,0.00017289,2]
[374686713,1753414232623,-460.0,0.00017289,2]
[374686714,1753414232633,-460.0,0.00017289,2]
[374686715,1753414232643,-460.0,0.00017289,2]
[374686716,1753414232654,-460.0,0.00017289,2]
[374686717,1753414232664,-535.85,0.00017289,2]
[374686718,1753414232673,-1947.08447713,0.00017289,2]
[374686726,1753414238065,-22634.38470914,0.00017289,2]
[374686727,1753414238075,-460.0,0.0001729,2]
[374686728,1753414238084,-133.44764747,0.0001729,2]
[374686729,1753414238095,-326.55235253,0.0001729,2]
[374686730,1753414238105,-462.55810979,0.0001729,2]
[374686731,1753414238114,-499.38136641,0.0001729,2]
[374686732,1753414238123,-460.0,0.0001729,2]
[374686733,1753414238132,-460.0,0.0001729,2]
[374686734,1753414238142,-460.0,0.0001729,2]
[374686735,1753414238151,-460.0,0.0001729,2]
[374686736,1753414238160,-460.0,0.0001729,2]
[374686737,1753414238169,-460.0,0.0001729,2]
[374686738,1753414238179,-460.0,0.0001729,2]
[374686739,1753414238188,-460.0,0.0001729,2]
[374686740,1753414238198,-466.68,0.0001729,2]
[374686741,1753414238206,-460.0,0.0001729,2]
[374686742,1753414238215,-460.0,0.0001729,2]
[374686743,1753414238224,-460.0,0.0001729,2]
[374686744,1753414238233,-460.0,0.0001729,2]
[374686745,1753414238242,-652.05,0.0001729,2]
[374686746,1753414238255,-1613.61,0.0001729,2]
[374686747,1753414238264,-460.0,0.0001729,2]
[374686748,1753414238274,-460.0,0.0001729,2]
[374686749,1753414238283,-460.0,0.0001729,2]
[374686750,1753414238292,-460.0,0.0001729,2]
[374686751,1753414238301,-488.98,0.0001729,2]
[374686752,1753414238310,-496.03,0.0001729,2]
[374686753,1753414238318,-460.0,0.0001729,2]
[374686754,1753414238327,-460.0,0.0001729,2]
[374686755,1753414238336,-370000.0,0.00017291,2]
[374686756,1753414238346,-514.79067432,0.00017291,2]
[374686757,1753414238358,-460.0,0.00017391,2]
[374686758,1753414238375,-460.0,0.00017391,2]
[374686759,1753414238384,-164.22329062,0.00017391,2]
[374686760,1753414238394,-460.0,0.00017391,2]
[374686761,1753414238403,-432.65351352,0.00017391,2]
[374686762,1753414238412,-460.0,0.00017391,2]
[374686763,1753414238421,-460.0,0.00017391,2]
[374686764,1753414238431,-460.0,0.00017391,2]
[374686765,1753414238442,-460.0,0.00017391,2]
[374686766,1753414238452,-209.60795151,0.00017391,2]
[374686767,1753414238460,-460.0,0.00017391,2]
[374686768,1753414238469,-460.0,0.00017391,2]
[374686769,1753414238480,-460.0,0.00017391,2]
[374686770,1753414238489,-460.0,0.00017391,2]
[374686771,1753414238498,-460.0,0.00017391,2]
[374686772,1753414238511,-460.0,0.00017391,2]
[374686773,1753414238520,-1176.89,0.00017391,2]
[374686774,1753414238530,-460.0,0.00017391,2]
[374686775,1753414238539,-690.01,0.00017391,2]
[374686776,1753414238548,-460.0,0.00017391,2]
[374686777,1753414238558,-460.0,0.00017391,2]
[374686778,1753414238567,-460.0,0.00017391,2]
[374686779,1753414238576,-460.0,0.00017391,2]
[374686780,1753414238585,-460.0,0.00017391,2]
[374686781,1753414238594,-460.0,0.00017392,2]
[374686782,1753414238603,-522.97259715,0.00017563,2]
[374686783,1753414238612,-1498.35,0.00017563,2]
[374686784,1753414238621,-1077.01,0.00017563,2]
[374686785,1753414238630,-460.0,0.00017563,2]
[374686786,1753414238639,-460.0,0.00017563,2]
[374686787,1753414238649,-796.03,0.00017563,2]
[374686788,1753414238658,-752.62,0.00017563,2]
[374686789,1753414238667,-846.15,0.00017563,2]
[374686790,1753414238676,-460.0,0.00017563,2]
[374686791,1753414238685,-1090.06,0.00017563,2]
[374686792,1753414238694,-460.0,0.00017563,2]
[374686793,1753414238703,-460.0,0.00017563,2]
[374686794,1753414238713,-460.0,0.00017563,2]
[374686795,1753414238722,-460.0,0.00017563,2]
[374686796,1753414238731,-535.85,0.00017563,2]
[374686797,1753414238740,-460.0,0.00017564,2]
[374686798,1753414238749,-540.0,0.00017564,2]
[374686799,1753414238763,-460.0,0.00017564,2]
[374686800,1753414238772,-460.0,0.00017564,2]
[374686801,1753414238781,-460.0,0.00017564,2]
[374686803,1753414238790,-460.0,0.00017564,2]
[374686804,1753414238800,-460.0,0.00017564,2]
[374686805,1753414238809,-460.0,0.00017564,2]
[374686807,1753414238818,-460.0,0.00017564,2]
[374686808,1753414238828,-460.0,0.00017564,2]
[374686809,1753414238838,-460.0,0.00017564,2]
[374686811,1753414238847,-460.0,0.00017564,2]
[374686812,1753414238856,-1613.61,0.00017564,2]
[374686813,1753414238866,-652.05,0.00017564,2]
[374686814,1753414238876,-460.0,0.00017564,2]
[374686816,1753414238886,-460.0,0.00017564,2]
[374686817,1753414238896,-488.98,0.00017564,2]
[374686818,1753414238907,-496.03,0.00017564,2]
[374686819,1753414238916,-460.0,0.00017564,2]
[374686821,1753414238927,-460.0,0.00017564,2]
[374686823,1753414238937,-460.0,0.00017665,2]
[374686825,1753414238948,-460.0,0.00017665,2]
[374686827,1753414238959,-460.0,0.00017665,2]
[374686829,1753414238970,-460.0,0.00017665,2]
[374686831,1753414238981,-460.0,0.00017665,2]
[374686833,1753414238992,-460.0,0.00017665,2]
[374686834,1753414239007,-460.0,0.00017665,2]
[374686836,1753414239021,-460.0,0.00017665,2]
[374686838,1753414239032,-256.28472357,0.00017665,2]
[374686840,1753414239043,-1176.89,0.00017665,2]
[374686842,1753414239055,-460.0,0.00017665,2]
[374686844,1753414239069,-690.01,0.00017665,2]
[374686847,1753414239081,-460.0,0.00017665,2]
[374686848,1753414239092,-460.0,0.00017665,2]
[374686850,1753414239103,-460.0,0.00017665,2]
[374686853,1753414239114,-460.0,0.00017666,2]
[374686854,1753414239125,-292.5845801,0.0001782,2]
[374686857,1753414239136,-1000.0,0.00017821,2]
[374686859,1753414239148,-1498.35,0.00017837,2]
[374686860,1753414239159,-1077.01,0.00017837,2]
[374686862,1753414239171,-460.0,0.00017837,2]
[374686864,1753414239182,-460.0,0.00017837,2]
[374686866,1753414239194,-796.03,0.00017837,2]
[374686869,1753414239205,-752.62,0.00017837,2]
[374686871,1753414239216,-846.15,0.00017837,2]
[374686872,1753414239228,-460.0,0.00017837,2]
[374686875,1753414239240,-1090.06,0.00017837,2]
[374686876,1753414239250,-460.0,0.00017837,2]
[374686877,1753414239276,-460.0,0.00017837,2]
[374686879,1753414239288,-460.0,0.00017837,2]
[374686880,1753414239299,-460.0,0.00017837,2]
[374686882,1753414239310,-535.85,0.00017837,2]
[374686883,1753414239321,-460.0,0.00017838,2]
[374686884,1753414239332,-460.0,0.00017838,2]
[374686885,1753414239343,-460.0,0.00017838,2]
[374686886,1753414239354,-460.0,0.00017838,2]
[374686887,1753414239366,-460.0,0.00017838,2]
[374686888,1753414239379,-460.0,0.00017838,2]
[374686889,1753414239390,-460.0,0.00017838,2]
[374686890,1753414239400,-460.0,0.00017838,2]
[374686891,1753414239412,-460.0,0.00017838,2]
[374686892,1753414239422,-460.0,0.00017838,2]
[374686893,1753414239435,-460.0,0.00017838,2]
[374686894,1753414239446,-1613.61,0.00017838,2]
[374686895,1753414239457,-652.05,0.00017838,2]
[374686897,1753414239467,-460.0,0.00017838,2]
[374686899,1753414239478,-460.0,0.00017838,2]
[374686901,1753414239488,-488.98,0.00017838,2]
[374686903,1753414239499,-496.03,0.00017838,2]
[374686906,1753414239523,-460.0,0.00017838,2]
[374686908,1753414239533,-460.0,0.00017838,2]
[374686909,1753414239543,-2706.02087998,0.000179,2]